Workbook

Sheet 1. Forside
A1: Lyngby-Taarbæk Vand A/S
D8: Bilag A
D13: Indholdsfortegnelse
C16: Fane nr. 2 | D16: Samlet prisloft
C17: Fane nr. 3 | D17: Driftsomkostninger
C18: Fane nr. 4 | D18: Historiske investeringer
C19: Fane nr. 5 | D19: Gennemførte investeringer
C20: Fane nr. 6 | D20: Korrektion investeringer
C21: Fane nr. 7 | D21: Planlagte investeringer
C22: Fane nr. 8 | D22: 1:1 omkostninger
C23: Fane nr. 9 | D23: Miljø- og servicemål
C24: Fane nr. 10 | D24: Nettofinansielle poster
C25: Fane nr. 11 | D25: Over- eller underdækning
C26: Fane nr. 12 | D26: Kontrol med indtægtsrammen og oversigt over ekstraordinære effektiviseringsgevinster

Sheet 2. Samlet prisloft
A1: ='1. Forside'!A1 -> Lyngby-Taarbæk Vand A/S
B4: Fane 2. Samlet prisloft for 2015
B6: Driftsomkostninger
B7: Driftsomkostninger i prisloftet for 2014 | C7: ='3. Driftsomkostninger'!C20 -> 18121673.3 | D7: kr.
B8: Bortfald af væsentlige omkostninger | C8: =-'3. Driftsomkostninger'!C16 -> 0 | D8: kr.
B9: Korrektion for prisudviklingen 2014-2015 | C9: ='3. Driftsomkostninger'!C22 -> 14497.33864 | D9: kr.
B10: Forhøjelse til effektivt niveau iht. benchmarkingen | C10: ='3. Driftsomkostninger'!C28 -> 0 | D10: kr.
B11: Korrektion for generelt effektiviseringskrav | C11: =-'3. Driftsomkostninger'!C34 -> -79735.36254 | D11: kr.
B12: Korrektion for individuelt effektiviseringskrav | C12: =-'3. Driftsomkostninger'!C43 -> -906083.6653 | D12: kr.
B13: Driftsomkostninger i alt | C13: =SUM(C7:C12) -> 17150351.62 | D13: kr. | E13: =C13 -> 17150351.62 | F13: kr.
B14: Investeringer
B15: Tillæg for historiske investeringer | C15: ='4. Historiske investeringer'!C9 -> 5085051.745 | D15: kr.
B16: Tillæg for gennemførte investeringer i 2011-2013 | C16: ='5. Gennemførte investeringer'!F80 -> 2804017.995 | D16: kr.
B17: Korrektion af tillæg for planlagte investeringer vedrørende 2013 | C17: ='6. Korrektion investeringer'!C10 -> -231524.8667 | D17: kr.
B18: Tillæg for planlagte investeringer i 2014 og 2015 | C18: ='7. Planlagte investeringer'!F61 -> 1871862.5 | D18: kr.
B19: Investeringstillæg i alt | C19: =SUM(C15:C18) -> 9529407.374 | D19: kr. | E19: =C19 -> 9529407.374 | F19: kr.
B20: Øvrige omkostninger mv.
B21: Tillæg for 1:1 omkostninger i 2015 | C21: ='8. 1-1 omkostninger'!C10 -> 10413000 | D21: kr.
B22: Tillæg for afgift for ledningsført vand i 2015 | C22: ='8. 1-1 omkostninger'!C15 -> 18190686 | D22: kr.
B23: Tillæg vedr. revisorerklæringer og DANVA/FVD-kontingent | C23: ='8. 1-1 omkostninger'!C21 -> 139000 | D23: kr.
B24: Korrektion ift. faktiske 1:1 omkostninger i 2013 | C24: ='8. 1-1 omkostninger'!C27 -> 1646738 | D24: kr.
B25: Tillæg for driftsomkostninger til miljø- og servicemål i 2015 | C25: ='9. Miljø- og servicemål'!C10 -> 550000 | D25: kr.
B26: Korrektion ift. faktiske driftsomkostninger til miljø- og servicemål i 2013 | C26: ='9. Miljø- og servicemål'!C17 -> 0 | D26: kr.
B27: Tillæg/fradrag for nettofinansielle poster i 2015 | C27: ='10. Nettofinansielle poster'!C9 -> 3397724 | D27: kr.
B28: Korrektion ift. faktiske nettofinansielle poster i 2013 | C28: ='10. Nettofinansielle poster'!C16 -> 1163877 | D28: kr.
B29: Øvrige omkostninger mv. i alt | C29: =SUM(C21:C28) -> 35501025 | D29: kr. | E29: =C29 -> 35501025 | F29: kr.
B30: Historisk over- eller underdækning
B31: Tillæg/fradrag for over- eller underdækning til og med 2010 | C31: ='11. Over- eller underdækning'!C11 -> -188237.2487 | D31: kr. | E31: =C31 -> -188237.2487 | F31: kr.
B32: Korrektion i forhold til tidligere indtægtsramme
B33: Korrektion for overholdelse af indtægtsramme i prisloft 2013 | C33: ='12. Kontrol med indtægtsrammen'!E27 -> -331286.6884 | D33: kr. | E33: =C33 -> -331286.6884 | F33: kr.
B34: Samlet prisloft
B35: Indtægtsramme i 2015 | E35: =SUM(E13:E33) -> 61661260.05 | F35: kr.
B36: Debiteret vandmængde i 2013 | E36: 2785710 | F36: m3
B37: Prisloft 2015 | E37: =E35/E36 -> 22.13484535 | F37: kr./m3
B38: Prisloft 2015 ekskl. afgift for ledningsført vand | E38: =(E35-C22)/E36 -> 15.60484546 | F38: kr./m3

Sheet 3. Driftsomkostninger
A1: ='1. Forside'!A1 -> Lyngby-Taarbæk Vand A/S
B4: Fane 3. Driftsomkostninger
B6: Driftsomkostningerne i prisloftet for 2014
B7: Korrigerede driftsomkostninger i prisloftet for 2013 (DOiPL 2013) | C7: 18581687 | D7: kr.
B8: Prisfremskrivning 1,5 pct. | C8: =0.015*SUM(C7:C7) -> 278725.305 | D8: kr.
B9: Generelt effektiviseringskrav (0 pct.) | C9: 0 | D9: kr.
B10: Individuelt effektiviseringskrav | C10: -738739 | D10: kr.
B11: Driftsomkostningerne i prisloftet for 2014 (DOiPL 2014) | C11: =SUM(C7:C10) -> 18121673.3 | D11: kr.
B14: Korrektion for forventet bortfald af væsentlige omkostninger
B15: Selskabets indberettede bortfald af væsentlige omkostninger inden 2015 | C15: 0 | D15: kr.
B16: Korrektion for forventet bortfald | C16: =SUM(C15:C15) -> 0 | D16: kr.
B19: Korrektion for prisudviklingen fra 2014-2015
B20: Driftsomkostningerne i prisloftet for 2014 | C20: =C11-C16 -> 18121673.3 | D20: kr.
B21: Prisudvikling 2014 - 2015 | C21: 0.08 | D21: pct.
B22: Korrektion for prisudvikling | C22: =C20*(C21/100) -> 14497.33864 | D22: kr.
B25: Eventuel forhøjelse til effektivt niveau iht. benchmarkingen
B26: Selskabets effektive driftsomkostninger iht. benchmarkingen | C26: 11559815 | D26: kr.
B27: Selskabets pristalskorrigerede driftsomkostninger i 2015-niveau | C27: =C20+C22 -> 18136170.64 | D27: kr.
B28: Eventuel forhøjelse til effektivt niveau | C28: =IF(C27>C26,0,C26-C27) -> 0 | D28: kr.
B31: Korrektion for generelt effektiviseringskrav
B32: Driftsomkostningerne i prisloftet for 2014 | C32: =C20 -> 18121673.3 | D32: kr.
B33: Generelt effektiviseringskrav | C33: 0.44 | D33: pct.
B34: Endeligt generelt effektiviseringskrav | C34: =C32*(C33/100) -> 79735.36254 | D34: kr.
B37: Korrektion for individuelt effektiviseringskrav
B38: Rå effektiviseringspotentiale | C38: 6561858 | D38: kr.
B39: Effektiviseringspotentiale efter eventuel korrektion for særlige forhold | C39: 6561858 | D39: kr.
B40: Effektiviseringspotentiale efter forsigtighedshensyn | C40: 3729440 | D40: kr.
B41: Effektiviseringspotentiale efter eventuel korrektion for sammensætning af signifikante costdrivere | C41: 3729440 | D41: kr.
B42: Umiddelbart effektiviseringskrav | C42: =C41/4 -> 932360 | D42: kr.
B43: Endeligt individuelt effektiviseringskrav | C43: =IF(C42>0.05*C20,0.05*C20,IF(C42<0.01*C20,0,C42)) -> 906083.6653 | D43: kr.

Sheet 4. Historiske investeringer
A1: ='3. Driftsomkostninger'!A1 -> Lyngby-Taarbæk Vand A/S
B4: Fane 4. Historiske investeringer
B6: Tillæg for historiske investeringer
B7: Værdi af selskabets materielle anlægsaktiver pr. 1. januar 2010 | C7: 193217002.3 | D7: kr.
B8: Den årlige standardafskrivning på de materielle anlægsaktiver iht. POLKA | C8: 5085051.745 | D8: kr.
B9: Tillæg i alt i 2015 | C9: =C8 -> 5085051.745 | D9: kr.

Sheet 5. Gennemførte investeringer
A1: ='4. Historiske investeringer'!A1 -> Lyngby-Taarbæk Vand A/S
B4: Fane 5. Gennemførte investeringer i 2010 - 2013
B6: Tillæg for gennemførte investeringer i 2013
B7: Beskrivelse af investeringen | C7: Årstal | D7: Std. levetid (år) | E7: Anskaffelses-pris (kr.) | F7: Afskrivning
B8: Ø110 mm < Ledningsnet = Ø 250 mm | C8: 2013 | D8: 75 | E8: 3943117 | F8: =E8/D8 -> 52574.89333 | G8: kr.
B9: Ø 50mm < Ledningsnet = Ø110 mm | C9: 2013 | D9: 75 | E9: 438124 | F9: 5841.653333 | G9: kr.
B10: Stik på ledningsnet, Konstruktioner | C10: 2013 | D10: 75 | E10: 181169 | F10: 2415.586667 | G10: kr.
B11: Stik på ledningsnet, Mek./EL | C11: 2013 | D11: 75 | E11: 181169 | F11: 2415.586667 | G11: kr.
B12: Ø110 mm < Ledningsnet = Ø 250 mm | C12: 2013 | D12: 75 | E12: 1163476 | F12: 15513.01333 | G12: kr.
B13: Ø 50mm < Ledningsnet = Ø110 mm | C13: 2013 | D13: 75 | E13: 4653903 | F13: =E13/D13 -> 62052.04 | G13: kr.
B14: Ø 250 mm < Ledningsnet = Ø 500mm | C14: 2013 | D14: 75 | E14: 2514367 | F14: 33524.89333 | G14: kr.
B15: Ø 50mm < Ledningsnet = Ø110 mm | C15: 2013 | D15: 75 | E15: 182857 | F15: 2438.093333 | G15: kr.
B16: Ø110 mm < Ledningsnet = Ø 250 mm | C16: 2013 | D16: 75 | E16: 145195 | F16: 1935.933333 | G16: kr.
B17: Ø 50mm < Ledningsnet = Ø110 mm | C17: 2013 | D17: 75 | E17: 416530 | F17: 5553.733333 | G17: kr.
B18: Ø 50mm < Ledningsnet = Ø110 mm | C18: 2013 | D18: 75 | E18: 180083 | F18: 2401.106667 | G18: kr.
B19: Afregningsmålere, mekaniske | C19: 2013 | D19: 8 | E19: 2387800 | F19: 298475 | G19: kr.
B20: Ø 50mm < Ledningsnet = Ø110 mm | C20: 2013 | D20: 75 | E20: 211821 | F20: 2824.28 | G20: kr.
B21: Ø 50mm < Ledningsnet = Ø110 mm | C21: 2013 | D21: 75 | E21: 151865 | F21: 2024.866667 | G21: kr.
B22: Ø 50mm < Ledningsnet = Ø110 mm | C22: 2013 | D22: 75 | E22: 108467 | F22: 1446.226667 | G22: kr.
B23: Ø 50mm < Ledningsnet = Ø110 mm | C23: 2013 | D23: 75 | E23: 77956 | F23: 1039.413333 | G23: kr.
B24: Ø 50mm < Ledningsnet = Ø110 mm | C24: 2013 | D24: 75 | E24: 112814 | F24: 1504.186667 | G24: kr.
B25: Ø 50mm < Ledningsnet = Ø110 mm | C25: 2013 | D25: 75 | E25: 134655 | F25: 1795.4 | G25: kr.
B26: Ø 50mm < Ledningsnet = Ø110 mm | C26: 2013 | D26: 75 | E26: 198787 | F26: 2650.493333 | G26: kr.
B27: Ø 50mm < Ledningsnet = Ø110 mm | C27: 2013 | D27: 75 | E27: 91079 | F27: 1214.386667 | G27: kr.
B28: Ø 50mm < Ledningsnet = Ø110 mm | C28: 2013 | D28: 75 | E28: 69979 | F28: 933.0533333 | G28: kr.
B29: Ø 50mm < Ledningsnet = Ø110 mm | C29: 2013 | D29: 75 | E29: 145753 | F29: 1943.373333 | G29: kr.
B30: Ø 50mm < Ledningsnet = Ø110 mm | C30: 2013 | D30: 75 | E30: 119121 | F30: 1588.28 | G30: kr.
B31: Ø 50mm < Ledningsnet = Ø110 mm | C31: 2013 | D31: 75 | E31: 122705 | F31: 1636.066667 | G31: kr.
B32: SRO-brønd/kvarterbrønd/sektionsbrønd, Mek./EL | C32: 2013 | D32: 15 | E32: 2140 | F32: 142.6666667 | G32: kr.
B33: SRO-brønd/kvarterbrønd/sektionsbrønd, Mek./EL | C33: 2013 | D33: 15 | E33: 3745 | F33: 249.6666667 | G33: kr.
B34: Ø 50mm < Ledningsnet = Ø110 mm | C34: 2013 | D34: 75 | E34: 17098 | F34: 227.9733333 | G34: kr.
B35: Ø 50mm < Ledningsnet = Ø110 mm | C35: 2013 | D35: 75 | E35: 151056 | F35: 2014.08 | G35: kr.
B36: Ø 50mm < Ledningsnet = Ø110 mm | C36: 2013 | D36: 75 | E36: 141942 | F36: 1892.56 | G36: kr.
B37: Ø 50mm < Ledningsnet = Ø110 mm | C37: 2013 | D37: 75 | E37: 142975 | F37: 1906.333333 | G37: kr.
B38: Ø 50mm < Ledningsnet = Ø110 mm | C38: 2013 | D38: 75 | E38: 89156 | F38: 1188.746667 | G38: kr.
B39: Ø 50mm < Ledningsnet = Ø110 mm | C39: 2013 | D39: 75 | E39: 192020 | F39: 2560.266667 | G39: kr.
B40: Ø 50mm < Ledningsnet = Ø110 mm | C40: 2013 | D40: 75 | E40: 148916 | F40: 1985.546667 | G40: kr.
B41: Ø 50mm < Ledningsnet = Ø110 mm | C41: 2013 | D41: 75 | E41: 144308 | F41: 1924.106667 | G41: kr.
B42: Ø 50mm < Ledningsnet = Ø110 mm | C42: 2013 | D42: 75 | E42: 186806 | F42: 2490.746667 | G42: kr.
B43: Ø 50mm < Ledningsnet = Ø110 mm | C43: 2013 | D43: 75 | E43: 103604 | F43: 1381.386667 | G43: kr.
B44: Ø 50mm < Ledningsnet = Ø110 mm | C44: 2013 | D44: 75 | E44: 188287 | F44: 2510.493333 | G44: kr.
B45: Ø 50mm < Ledningsnet = Ø110 mm | C45: 2013 | D45: 75 | E45: 143151 | F45: 1908.68 | G45: kr.
B46: Ø 50mm < Ledningsnet = Ø110 mm | C46: 2013 | D46: 75 | E46: 14019 | F46: 186.92 | G46: kr.
B47: Ø 50mm < Ledningsnet = Ø110 mm | C47: 2013 | D47: 75 | E47: 1196 | F47: 15.94666667 | G47: kr.
B48: Ø 50mm < Ledningsnet = Ø110 mm | C48: 2013 | D48: 75 | E48: 29413 | F48: 392.1733333 | G48: kr.
B49: Ø 50mm < Ledningsnet = Ø110 mm | C49: 2013 | D49: 75 | E49: 1834 | F49: 24.45333333 | G49: kr.
B50: SRO-brønd/kvarterbrønd/sektionsbrønd, SRO | C50: 2013 | D50: 10 | E50: 11911 | F50: 1191.1 | G50: kr.
B51: SRO-brønd/kvarterbrønd/sektionsbrønd, SRO | C51: 2013 | D51: 10 | E51: 10351 | F51: 1035.1 | G51: kr.
B52: SRO-brønd/kvarterbrønd/sektionsbrønd, SRO | C52: 2013 | D52: 10 | E52: 3745 | F52: 374.5 | G52: kr.
B53: SRO-brønd/kvarterbrønd/sektionsbrønd, SRO | C53: 2013 | D53: 10 | E53: 3248 | F53: 324.8 | G53: kr.
B54: SRO-brønd/kvarterbrønd/sektionsbrønd, SRO | C54: 2013 | D54: 10 | E54: 27239 | F54: 2723.9 | G54: kr.
B55: Køretøjer, entreprenørmaskiner | C55: 2013 | D55: 5 | E55: 45427 | F55: 9085.4 | G55: kr.
B56: Hegn | C56: 2013 | D56: 15 | E56: 22977 | F56: 1531.8 | G56: kr.
B57: Køretøjer, entreprenørmaskiner | C57: 2013 | D57: 5 | E57: 247030 | F57: 49406 | G57: kr.
B58: Køretøjer, entreprenørmaskiner | C58: 2013 | D58: 5 | E58: 89000 | F58: 17800 | G58: kr.
B59: SRO-anlæg, vandværk | C59: 2013 | D59: 10 | E59: 13495 | F59: 1349.5 | G59: kr.
B60: SRO-anlæg, vandværk | C60: 2013 | D60: 10 | E60: 44424 | F60: 4442.4 | G60: kr.
B61: SRO-anlæg, vandværk | C61: 2013 | D61: 10 | E61: 40853 | F61: 4085.3 | G61: kr.
B62: SRO-anlæg, vandværk | C62: 2013 | D62: 10 | E62: 22789 | F62: 2278.9 | G62: kr.
B63: Sikring, avanceret (hegne, porte og overvågningssystemer), SRO | C63: 2013 | D63: 10 | E63: 19518 | F63: 1951.8 | G63: kr.
B64: SRO-anlæg, vandværk | C64: 2013 | D64: 10 | E64: 92600 | F64: 9260 | G64: kr.
B65: Køretøjer, entreprenørmaskiner | C65: 2013 | D65: 5 | E65: 13349 | F65: 2669.8 | G65: kr.
B66: Køretøjer, entreprenørmaskiner | C66: 2013 | D66: 5 | E66: 30880 | F66: 6176 | G66: kr.
B67: Skyllevandsbehandling, inkl. UV-filter mv., Mek./EL | C67: 2013 | D67: 25 | E67: 49093 | F67: 1963.72 | G67: kr.
B68: Elanlæg - vandværk | C68: 2013 | D68: 25 | E68: 22450 | F68: 898 | G68: kr.
B69: Elanlæg - vandværk | C69: 2013 | D69: 25 | E69: 30075 | F69: 1203 | G69: kr.
B70: SRO-anlæg, vandværk | C70: 2013 | D70: 10 | E70: 84728 | F70: 8472.8 | G70: kr.
B71: Garage og rørlager | C71: 2013 | D71: 75 | E71: 107376 | F71: 1431.68 | G71: kr.
B72: Etageareal kontor og mandskabsfaciliteter | C72: 2013 | D72: 75 | E72: 128090 | F72: 1707.866667 | G72: kr.
B73: Pumpestation (inkl. evt. hydrofor)/trykforøger, Mek./EL | C73: 2013 | D73: 25 | E73: 71916 | F73: 2876.64 | G73: kr.
B74: Pumpestation (inkl. evt. hydrofor)/trykforøger, Konstruktioner | C74: 2013 | D74: 50 | E74: 71916 | F74: 1438.32 | G74: kr.
B75: Ø 50mm < Ledningsnet = Ø110 mm | C75: 2013 | D75: 75 | E75: 1069699 | F75: 14262.65333 | G75: kr.
B76: Ventiler på Ø 50mm < Ledningsnet = Ø110 mm | C76: 2013 | D76: 75 | E76: 356566 | F76: 4754.213333 | G76: kr.
B77: Udpumpningsanlæg, rentvandspumper på vandværk | C77: 2013 | D77: 25 | E77: 209322 | F77: 8372.88 | G77: kr.
B78: Tillæg for 2013 | F78: =SUM(F8:F77) -> 691812.38 | G78: kr.
B79: Tillæg for 2010 - 2012 | F79: 2112205.615 | G79: kr.
B80: Samlet tillæg for gennemførte investeringer | F80: =F78+F79 -> 2804017.995 | G80: kr.

Sheet 6. Korrektion investeringer
A1: ='5. Gennemførte investeringer'!A1 -> Lyngby-Taarbæk Vand A/S
B4: Fane 6. Korrektion af tillæg for planlagte investeringer
B6: Korrektion af tillæg for planlagte investeringer vedr. 2013
B7: Tillæg for planlagte investeringer i 2013 i prisloft 2013 | C7: 670003 | D7: kr.
B8: Tillæg for planlagte investeringer i 2013 i prisloft 2014 | C8: 945146.6267 | D8: kr.
B9: Selskabets faktiske afskrivninger på gennemførte investeringer i 2013 | C9: ='5. Gennemførte investeringer'!F78 -> 691812.38 | D9: kr.
B10: Korrektion af tillæg for planlagte investeringer vedr. 2013 | C10: =C9-C7+C9-C8 -> -231524.8667 | D10: kr.

Sheet 7. Planlagte investeringer
A1: ='6. Korrektion investeringer'!A1 -> Lyngby-Taarbæk Vand A/S
B4: Fane 7. Planlagte investeringer
B6: Tillæg for planlagte investeringer i 2014 og 2015
B7: Beskrivelse af investeringen | C7: Årstal | D7: Std. levetid (år) | E7: Anskaffelses-pris (kr.) | F7: Afskrivning
B8: SRO-brønd/kvarterbrønd/sektionsbrønd, Mek./EL | C8: 2014 | D8: 15 | E8: 4302263 | F8: =E8/D8 -> 286817.5333 | G8: kr.
B9: Ledningsnet = Ø50 mm | C9: 2014 | D9: 75 | E9: 894054 | F9: =E9/D9 -> 11920.72 | G9: kr.
B10: Stik på ledningsnet, Mek./EL | C10: 2014 | D10: 75 | E10: 75000 | F10: =E10/D10 -> 1000 | G10: kr.
B11: Ø 250 mm < Ledningsnet = Ø 500mm | C11: 2014 | D11: 75 | E11: 2532521 | F11: 33766.94667 | G11: kr.
B12: Ø110 mm < Ledningsnet = Ø 250 mm | C12: 2014 | D12: 75 | E12: 2972255 | F12: 39630.06667 | G12: kr.
B13: Ø 250 mm < Ledningsnet = Ø 500mm | C13: 2014 | D13: 75 | E13: 2748600 | F13: 36648 | G13: kr.
B14: Ledningsnet = Ø50 mm | C14: 2014 | D14: 75 | E14: 726230 | F14: 9683.066667 | G14: kr.
B15: Stik på ledningsnet, Konstruktioner | C15: 2014 | D15: 75 | E15: 703000 | F15: 9373.333333 | G15: kr.
B16: Stik på ledningsnet, Mek./EL | C16: 2014 | D16: 75 | E16: 60000 | F16: 800 | G16: kr.
B17: Ø 250 mm < Ledningsnet = Ø 500mm | C17: 2014 | D17: 75 | E17: 606357 | F17: 8084.76 | G17: kr.
B18: Ø110 mm < Ledningsnet = Ø 250 mm | C18: 2014 | D18: 75 | E18: 3688496 | F18: 49179.94667 | G18: kr.
B19: Ledningsnet = Ø50 mm | C19: 2014 | D19: 75 | E19: 131053 | F19: 1747.373333 | G19: kr.
B20: Stik på ledningsnet, Konstruktioner | C20: 2014 | D20: 75 | E20: 15000 | F20: 200 | G20: kr.
B21: Stik på ledningsnet, Mek./EL | C21: 2014 | D21: 75 | E21: 15000 | F21: 200 | G21: kr.
B22: Ø 250 mm < Ledningsnet = Ø 500mm | C22: 2014 | D22: 75 | E22: 17250 | F22: 230 | G22: kr.
B23: Ø110 mm < Ledningsnet = Ø 250 mm | C23: 2014 | D23: 75 | E23: 210402 | F23: 2805.36 | G23: kr.
B24: Køretøjer, entreprenørmaskiner | C24: 2014 | D24: 5 | E24: 50000 | F24: 10000 | G24: kr.
B25: Pumpestation (inkl. evt. hydrofor)/trykforøger, Mek./EL | C25: 2014 | D25: 25 | E25: 500000 | F25: 20000 | G25: kr.
B26: Ventiler på ledningsnet = Ø50 mm | C26: 2014 | D26: 75 | E26: 3609 | F26: 48.12 | G26: kr.
B27: Ventiler på Ø 50mm < Ledningsnet = Ø110 mm | C27: 2014 | D27: 75 | E27: 3609 | F27: 48.12 | G27: kr.
B28: Stik på ledningsnet, Konstruktioner | C28: 2014 | D28: 75 | E28: 1142300 | F28: 15230.66667 | G28: kr.
B29: Afregningsmålere, mekaniske | C29: 2014 | D29: 8 | E29: 2500000 | F29: 312500 | G29: kr.
B30: Ø 50mm < Ledningsnet = Ø110 mm | C30: 2014 | D30: 75 | E30: 3306823 | F30: 44090.97333 | G30: kr.
B31: Ø 50mm < Ledningsnet = Ø110 mm | C31: 2014 | D31: 75 | E31: 405000 | F31: 5400 | G31: kr.
B32: Ø 50mm < Ledningsnet = Ø110 mm | C32: 2014 | D32: 75 | E32: 3892109 | F32: 51894.78667 | G32: kr.
B33: Ø 50mm < Ledningsnet = Ø110 mm | C33: 2014 | D33: 75 | E33: 202500 | F33: 2700 | G33: kr.
B34: Ø 50mm < Ledningsnet = Ø110 mm | C34: 2014 | D34: 75 | E34: 111272 | F34: 1483.626667 | G34: kr.
B35: Boring (inkl. etablering, forerør, filter og prøvepumpning) | C35: 2015 | D35: 30 | E35: 3029371 | F35: 100979.0333 | G35: kr.
B36: Køretøjer, entreprenørmaskiner | C36: 2015 | D36: 5 | E36: 279986 | F36: 55997.2 | G36: kr.
B37: Ledningsnet = Ø50 mm | C37: 2015 | D37: 75 | E37: 340000 | F37: 4533.333333 | G37: kr.
B38: Stik på ledningsnet, Konstruktioner | C38: 2015 | D38: 75 | E38: 866575 | F38: 11554.33333 | G38: kr.
B39: Stik på ledningsnet, Mek./EL | C39: 2015 | D39: 75 | E39: 75000 | F39: 1000 | G39: kr.
B40: Ø 50mm < Ledningsnet = Ø110 mm | C40: 2015 | D40: 75 | E40: 340000 | F40: 4533.333333 | G40: kr.
B41: Ø110 mm < Ledningsnet = Ø 250 mm | C41: 2015 | D41: 75 | E41: 4365275 | F41: 58203.66667 | G41: kr.
B42: Ø 250 mm < Ledningsnet = Ø 500mm | C42: 2015 | D42: 75 | E42: 640000 | F42: 8533.333333 | G42: kr.
B43: Ledningsnet = Ø50 mm | C43: 2015 | D43: 75 | E43: 176000 | F43: 2346.666667 | G43: kr.
B44: Stik på ledningsnet, Konstruktioner | C44: 2015 | D44: 75 | E44: 858125 | F44: 11441.66667 | G44: kr.
B45: Stik på ledningsnet, Mek./EL | C45: 2015 | D45: 75 | E45: 60000 | F45: 800 | G45: kr.
B46: Ø 250 mm < Ledningsnet = Ø 500mm | C46: 2015 | D46: 75 | E46: 115600 | F46: 1541.333333 | G46: kr.
B47: Ø 50mm < Ledningsnet = Ø110 mm | C47: 2015 | D47: 75 | E47: 180000 | F47: 2400 | G47: kr.
B48: Ø110 mm < Ledningsnet = Ø 250 mm | C48: 2015 | D48: 75 | E48: 5232425 | F48: 69765.66667 | G48: kr.
B49: Ø 250 mm < Ledningsnet = Ø 500mm | C49: 2015 | D49: 75 | E49: 640000 | F49: 8533.333333 | G49: kr.
B50: Ledningsnet = Ø50 mm | C50: 2015 | D50: 75 | E50: 75000 | F50: 1000 | G50: kr.
B51: Stik på ledningsnet, Konstruktioner | C51: 2015 | D51: 75 | E51: 15000 | F51: 200 | G51: kr.
B52: Stik på ledningsnet, Mek./EL | C52: 2015 | D52: 75 | E52: 15000 | F52: 200 | G52: kr.
B53: Ø 50mm < Ledningsnet = Ø110 mm | C53: 2015 | D53: 75 | E53: 75000 | F53: 1000 | G53: kr.
B54: Ø110 mm < Ledningsnet = Ø 250 mm | C54: 2015 | D54: 75 | E54: 75000 | F54: 1000 | G54: kr.
B55: Pumpestation (inkl. evt. hydrofor)/trykforøger, Mek./EL | C55: 2015 | D55: 25 | E55: 500000 | F55: 20000 | G55: kr.
B56: Instrumenter (flowmåler+tryk transducer+alarmer) | C56: 2015 | D56: 10 | E56: 1598036 | F56: 159803.6 | G56: kr.
B57: Råvandsstation komplet montering og boringshus/tørbrønd | C57: 2015 | D57: 30 | E57: 2355378 | F57: 78512.6 | G57: kr.
B58: Afregningsmålere, mekaniske | C58: 2015 | D58: 8 | E58: 2500000 | F58: 312500 | G58: kr.
B59: Tillæg for 2014 | F59: =SUMIF(C8:C58,"2014",F8:F58) -> 955483.4 | G59: kr.
B60: Tillæg for 2015 | F60: =SUMIF(C8:C58,"2015",F8:F58) -> 916379.1 | G60: kr.
B61: Tillæg i alt | F61: =F59+F60 -> 1871862.5 | G61: kr.

Sheet 8. 1-1 omkostninger
A1: ='7. Planlagte investeringer'!A1 -> Lyngby-Taarbæk Vand A/S
B4: Fane 8. 1:1 omkostninger
B6: Tillæg for budgetterede 1:1 omkostninger i 2015
B7: Betaling til Forsyningssekretariatet | C7: 33000 | D7: kr.
B8: Køb af varer og tjenesteydelser hos et andet prisloftreguleret vandselskab | C8: 9760000 | D8: kr.
B9: Ejendomsskatter | C9: 620000 | D9: kr.
B10: Tillæg i alt | C10: =SUM(C7:C9) -> 10413000 | D10: kr.
B13: Tillæg for afgift for ledningsført vand i 2015
B14: Afgift for ledningsført vand (6,53 kr./m3) | C14: 18190686 | D14: kr.
B15: Tillæg i alt | C15: =SUM(C14:C14) -> 18190686 | D15: kr.
B18: Tillæg for budgetterede nødvendige udgifter til revisorerklæringer samt ordinært medlemskab af DANVA og FVD i 2015
B19: Betaling for ordinært medlemskab af DANVA/FVD | C19: 121000 | D19: kr.
B20: Betaling for revisorerklæringer | C20: 18000 | D20: kr.
B21: Tillæg i alt | C21: =SUM(C19:C20) -> 139000 | D21: kr.
B24: Korrektion af tillæg for faktiske 1:1 omkostninger (inkl. afgift for ledningsført vand, revisorerklæringer og ordinært medlemskab af DANVA/FVD) i 2013
B25: Selskabets faktiske 1:1 omkostninger mv. i 2013, jf. reguleringsregnskabet | C25: 25558491 | D25: kr.
B26: Tillæg for budgetterede 1:1 omkostninger mv. i prisloft 2013 | C26: 23911753 | D26: kr.
B27: Korrektion af tillæg for budgetterede 1:1 omkostninger mv. i 2013 | C27: =C25-C26 -> 1646738 | D27: kr.

Sheet 9. Miljø- og servicemål
A1: ='8. 1-1 omkostninger'!A1 -> Lyngby-Taarbæk Vand A/S
B4: Fane 9. Driftsomkostninger til miljø- og servicemål
B6: Tillæg for budgetterede driftsomkostninger til miljø- og servicemål i 2015
B7: Sikring af vandkvalitet via målerbrønde | C7: 100000 | D7: kr.
B8: SMS-service | C8: 50000 | D8: kr.
B9: Fjernaflæsning med elektroniske målere | C9: 400000 | D9: kr.
B10: Tillæg i alt | C10: =SUM(C7:C9) -> 550000 | D10: kr.
B14: Korrektion af tillæg for faktiske driftsomkostninger til miljø- og servicemål i 2013
B15: Selskabets faktiske driftsomkostninger til miljø- og servicemål i 2013, jf. reguleringsregnskabet | C15: 0 | D15: kr.
B16: Tillæg for budgetterede driftsomkostninger til miljø- og servicemål i prisloft 2013 | C16: 0 | D16: kr.
B17: Korrektion af tillæg for budgetterede driftsomkostninger til miljø- og servicemål i 2013 | C17: =C15-C16 -> 0 | D17: kr.

Sheet 10. Nettofinansielle poster
A1: ='2. Samlet prisloft'!A1 -> Lyngby-Taarbæk Vand A/S
B4: Fane 10. Nettofinansielle poster
B6: Tillæg for budgetterede nettofinansielle poster i 2015
B7: Budgetterede renteudgifter og gebyrer i 2015 | C7: 3402724 | D7: kr.
B8: Budgetterede renteindtægter i 2015 | C8: 5000 | D8: kr.
B9: Tillæg/fradrag i alt | C9: =C7-C8 -> 3397724 | D9: kr.
B13: Korrektion af tillæg for faktiske nettofinansielle poster i 2013
B14: Selskabets faktiske nettofinansielle poster i 2013, jf. reguleringsregnskabet | C14: 2120334 | D14: kr.
B15: Tillæg for budgetterede nettofinansielle poster i prisloft 2013 | C15: 956457 | D15: kr.
B16: Korrektion af tillæg for budgetterede nettofinansielle poster i 2013 | C16: =C14-C15 -> 1163877 | D16: kr.

Sheet 11. Over- eller underdækning
A1: ='1. Forside'!A1 -> Lyngby-Taarbæk Vand A/S
B4: Fane 11. Over- eller underdækning til og med 2010
B6: Tillæg/fradrag for over- eller underdækning til og med 2010
B7: Opgjort over- eller underdækning per 31. december 2010 | C7: -2302968 | D7: kr.
B8: Heraf beløb indregnet i prislofterne for 2011 - 2014 | C8: -1173544.508 | D8: kr.
B9: Endnu ikke indregnet over- eller underdækning | C9: =C7-C8 -> -1129423.492 | D9: kr.
B10: Resterende indregningsperiode (fastsat i prisloftet for 2012) | C10: 6 | D10: år
B11: Tillæg/fradrag i alt | C11: =IF(C7=0,0,C9/C10) -> -188237.2487 | D11: kr.

Sheet 12. Kontrol med indtægtsrammen
A1: ='11. Over- eller underdækning'!A1 -> Lyngby-Taarbæk Vand A/S
B4: Fane 12. Korrektion for overholdelse af indtægtsrammen i prisloftet for 2013
B6: Samlet opgørelse vedrørende overholdelse af indtægtsrammen i prisloftet for 2013
B7: Indtægtsramme i prisloftet for 2013 | E7: 52654003.31 | F7: kr.
B8: Ikke anvendt likviditet vedrørende investeringer i 2013
B9: Tillæg for historiske investeringer | C9: 6375157.662 | D9: kr.
B10: Tillæg for gennemførte investeringer i 2011 | C10: 1075605 | D10: kr.
B11: Korrektion af tillæg for planlagte investeringer i 2011 | C11: -374681 | D11: kr.
B12: Tillæg for planlagte investeringer i 2012 og 2013 | C12: 2054720 | D12: kr.
B13: Indtægter fra tilslutningsbidrag | C13: 1216854 | D13: kr.
B14: Indtægter fra salg af anlægsaktiver | C14: 39878 | D14: kr.
B15: Erstatninger vedr. anlægsaktiver mv. | C15: 0 | D15: kr.
B16: Ekstraordinær effektiviseringsgevinst anvendt til investeringer | C16: 4509486 | D16: kr.
B17: Udgifter til investeringer | C17: -14897020 | D17: kr.
B18: Ikke anvendt likviditet vedr. investeringer i alt | C18: =SUM(C9:C17) -> -0.3377246186 | D18: kr. | E18: =IF(C18<0,0,-C18) -> 0 | F18: kr.
B19: Ekstraordinære effektiviseringsgevinster anvendt til takstnedsættelse
B20: Ekstraordinær effektiviseringsgevinst anvendt til takstnedsættelse | C20: 0 | D20: kr. | E20: =-C20 -> 0 | F20: kr.
B21: Korrektion af ikke opkrævet tillæg fra 2011 i prisloft 2013
B22: Korrektion af ikke opkrævet tillæg fra 2011 i prisloft 2013 | C22: 0 | D22: kr. | E22: =-C22 -> 0 | F22: kr.
B23: Indtægter fra primære aktiviteter mv.
B24: Indtægter fra kubikmetertakster, faste takster, særbidrag, målergebyrer samt andre takster og gebyrer | C24: 52811110 | D24: kr.
B25: Andre indtægter i prisloftåret, som selskabet har opnået i forbindelse med eller som følge af selskabets primære aktiviteter | C25: 174180 | D25: kr.
B26: Indtægter fra primære aktiviteter mv. i alt | C26: =SUM(C24:C25) -> 52985290 | D26: kr. | E26: =-C26 -> -52985290 | F26: kr.
B27: Tillæg/fradrag i prisloftet for 2015 i alt | E27: =E7+E18+E20+E22+E26 -> -331286.6884 | F27: kr.
B31: Oversigt over ekstraordinære effektiviseringsgevinster
C33: 2012 | E33: 2013 | G33: 2014 | I33: 2015 | K33: 2016
B34: Indhentet ekstraordinær effektiviseringsgevinst | C34: 4936853 | D34: kr. | E34: 4475738 | F34: kr. | H34: kr. | J34: kr. | L34: kr.
B35: Gevinst anvendt til investeringer | C35: 4903105 | D35: kr. | E35: 4509486 | F35: kr. | H35: kr. | J35: kr. | L35: kr.
B36: Gevinst anvendt til takstnedsættelse | C36: 0 | D36: kr. | E36: 0 | F36: kr. | H36: kr. | J36: kr. | L36: kr.
B37: Korrektion for effektiviseringsgevinst der ikke er anvendt inden 4 år | C37: 0 | D37: kr. | E37: 0 | F37: kr. | H37: kr. | J37: kr. | K37: =IF(C38>SUM(C35:I36),C38-SUM(E35:I36),0)*-1 -> 0 | L37: kr.
B38: Resterende gevinst | C38: =C34-C35-C36 -> 33748 | D38: kr. | E38: =C38+E34-E35-E36 -> 0 | F38: kr. | G38: =E38+G34-G35-G36 -> 0 | H38: kr. | I38: =G38+I34-I35-I36 -> 0 | J38: kr. | K38: =K34-K35-K36+K37 -> 0 | L38: kr.
